fUSD/lending_fUSD_20250814
["ID","MTS","AMOUNT","RATE_DAILY","PERIOD"]
[379239867,1755214240659,-509.6642628,0.00024372,2]
[379239868,1755214240668,-150.0,0.00024385,4]
[379239869,1755214240677,-150.0,0.00024385,4]
[379239870,1755214240687,-150.0,0.00024385,4]
[379239871,1755214240696,-164.33,0.00024388,2]
[379239872,1755214240706,-1418.0,0.000244,2]
[379239873,1755214240715,-150.0,0.00024426,4]
[379239874,1755214240724,-150.0,0.00024426,4]
[379239875,1755214240734,-150.0,0.00024452,4]
[379239876,1755214240745,-150.0,0.00024477,4]
[379239877,1755214240756,-552.90850328,0.0002448,2]
[379239878,1755214240769,-150.0,0.0002457,4]
[379239879,1755214240783,-150.0,0.0002457,4]
[379239880,1755214240793,-150.0,0.0002457,4]
[379239881,1755214240805,-150.0,0.0002457,4]
[379239882,1755214240815,-150.0,0.0002457,4]
[379239883,1755214240826,-150.0,0.0002457,4]
[379239884,1755214240835,-150.0,0.0002457,4]
[379239885,1755214240846,-596.15274376,0.00024587,2]
[379239886,1755214240856,-150.0,0.00024662,4]
[379239887,1755214240865,-150.0,0.00024687,4]
[379239888,1755214240875,-1070.13374574,0.00024693,2]
[379239889,1755214240884,-277.35679052,0.00024693,2]
[379239890,1755214240895,-639.39698424,0.00024695,2]
[379239891,1755214240907,-150.0,0.00024714,4]
[379239892,1755214240916,-150.0,0.00024714,4]
[379239893,1755214240926,-150.0,0.00024755,4]
[379239894,1755214240937,-150.0,0.00024755,4]
[379239895,1755214240947,-150.0,0.00024755,4]
[379239896,1755214240956,-159.0,0.00024771,3]
[379239897,1755214240966,-150.0,0.00024792,2]
[379239898,1755214240975,-150.0,0.00024792,2]
[379239899,1755214240985,-759.90604183,0.00024796,2]
[379239900,1755214240998,-682.64122472,0.00024802,2]
[379239901,1755214241008,-150.0,0.00024847,4]
[379239902,1755214241023,-150.0,0.00024857,4]
[379239903,1755214241032,-300.0,0.00024885,2]
[379239904,1755214241043,-600.0,0.00024885,2]
[379239905,1755214241058,-160.0,0.00024885,2]
[379239906,1755214241067,-3000.0,0.00024885,2]
[379239907,1755214241078,-285.61442275,0.00024885,2]
[379239908,1755214241088,-200.0,0.00024885,2]
[379239909,1755214241097,-200.0,0.00024885,2]
[379239910,1755214241107,-200.0,0.00024885,2]
[379239911,1755214241116,-151.0,0.00024885,2]
[379239912,1755214241126,-500.0,0.00024885,2]
[379239913,1755214241137,-500.0,0.00024885,2]
[379239914,1755214241146,-500.0,0.00024885,2]
[379239915,1755214241156,-500.0,0.00024885,2]
[379239916,1755214241166,-500.0,0.00024885,2]
[379239917,1755214241175,-1250.0,0.00024885,2]
[379239918,1755214241185,-150.0,0.00024893,4]
[379239919,1755214241195,-17459.48058403,0.000249,2]
[379239920,1755214241204,-725.8854652,0.0002491,2]
[379239921,1755214241213,-150.0,0.00024923,4]
[379239922,1755214241224,-797.99,0.00024929,2]
[379239923,1755214241233,-797.99,0.00024929,2]
[379239924,1755214241243,-797.99,0.00024929,2]
[379239925,1755214241252,-150.0,0.00024939,4]
[379239926,1755214241262,-809.99999452,0.00024985,2]
[379239927,1755214241271,-1000.0,0.00025,2]
[379239928,1755214241280,-171.0,0.00025,7]
[379239929,1755214241290,-19330.14274264,0.00025,2]
[379239930,1755214241299,-1881.99999991,0.00025,7]
[379239931,1755214241309,-1039.96385381,0.00025,2]
[379239932,1755214241319,-150.0,0.00025001,4]
[379239933,1755214241329,-150.0,0.00025001,4]
[379239934,1755214241339,-150.0,0.00025001,4]
[379239935,1755214241349,-15000.0,0.0002501,2]
[379239936,1755214241358,-769.12970568,0.00025017,2]
[379239937,1755214241368,-150.0,0.00025032,4]
[379239938,1755214241379,-151.0,0.00025033,3]
[379239939,1755214241389,-151.0,0.00025033,3]
[379239940,1755214241399,-151.0,0.00025033,3]
[379239941,1755214241408,-151.0,0.00025033,3]
[379239942,1755214241417,-151.0,0.00025033,3]
[379239943,1755214241427,-151.0,0.00025033,3]
[379239944,1755214241436,-151.0,0.00025033,3]
[379239945,1755214241445,-151.0,0.00025033,3]
[379239946,1755214241455,-151.0,0.00025033,3]
[379239947,1755214241464,-151.0,0.00025033,3]
[379239948,1755214241474,-1217.0,0.00025033,3]
[379239949,1755214241484,-1217.0,0.00025033,3]
[379239950,1755214241494,-1217.0,0.00025033,3]
[379239951,1755214241504,-1217.0,0.00025033,3]
[379239952,1755214241513,-1217.0,0.00025033,3]
[379239953,1755214241523,-1217.0,0.00025033,3]
[379239954,1755214241532,-1217.0,0.00025033,3]
[379239955,1755214241542,-1217.0,0.00025033,3]
[379239956,1755214241552,-1217.0,0.00025033,3]
[379239957,1755214241561,-1217.0,0.00025033,3]
[379239958,1755214241571,-1217.0,0.00025033,3]
[379239959,1755214241582,-151.0,0.00025033,3]
[379239960,1755214241591,-151.0,0.00025033,3]
[379239961,1755214241601,-151.0,0.00025033,3]
[379239962,1755214241611,-151.0,0.00025033,3]
[379239963,1755214241620,-151.0,0.00025033,3]
[379239964,1755214241630,-151.0,0.00025033,3]
[379239965,1755214241640,-151.0,0.00025033,3]
[379239966,1755214241650,-151.0,0.00025033,3]
[379239967,1755214241659,-151.0,0.00025033,3]
[379239968,1755214241669,-151.0,0.00025033,3]
[379239969,1755214241680,-151.0,0.00025033,3]
[379239970,1755214241691,-151.0,0.00025033,3]
[379239971,1755214241701,-151.0,0.00025033,3]
[379239972,1755214241711,-151.0,0.00025033,3]
[379239973,1755214241721,-151.0,0.00025033,3]
[379239974,1755214241732,-151.0,0.00025033,3]
[379239975,1755214241742,-151.0,0.00025033,3]
[379239976,1755214241753,-151.0,0.00025033,3]
[379239977,1755214241764,-151.0,0.00025033,3]
[379239978,1755214241777,-151.0,0.00025033,3]
[379239979,1755214241787,-151.0,0.00025033,3]
[379239980,1755214241798,-151.0,0.00025033,3]
[379239981,1755214241809,-151.0,0.00025033,3]
[379239982,1755214241820,-900.0,0.000251,9]
[379239983,1755214241830,-150.0,0.00025124,4]
[379239984,1755214241844,-150.0,0.00025124,4]
[379239985,1755214242176,-150.0,0.00025124,4]
[379239986,1755214242187,-812.37394616,0.00025125,2]
[379239987,1755214242197,-150.0,0.00025145,4]
[379239988,1755214242206,-150.0,0.00025158,4]
[379239989,1755214242214,-150.0,0.00025185,2]
[379239990,1755214242224,-150.0,0.00025185,2]
[379239991,1755214242233,-1800.0,0.000252,9]
[379239992,1755214242243,-1000.0,0.000252,2]
[379239993,1755214242252,-150.0,0.00025216,4]
[379239994,1755214242263,-150.0,0.00025216,4]
[379239995,1755214242272,-150.0,0.00025216,4]
[379239996,1755214242282,-150.0,0.00025216,4]
[379239997,1755214242292,-150.0,0.00025216,4]
[379239998,1755214242302,-855.61818664,0.00025233,2]
[379239999,1755214242311,-800.12536799,0.00025235,2]
[379240000,1755214242321,-26200.67,0.00025274,14]
[379240001,1755214242330,-11954.93,0.00025274,14]
[379240002,1755214242340,-150.0,0.00025288,4]
[379240003,1755214242350,-150.0,0.00025288,4]
[379240004,1755214242362,-2800.0,0.000253,9]
[379240005,1755214242372,-1000.0,0.000253,2]
[379240006,1755214242381,-150.0,0.00025309,4]
[379240007,1755214242392,-1390.0,0.0002533,2]
[379240008,1755214242402,-1250.0,0.0002534,2]
[379240009,1755214242411,-898.86242712,0.0002534,2]
[379240010,1755214242420,-3295.24821011,0.0002534,2]
[379240011,1755214242430,-3295.24821006,0.00025372,2]
[379240012,1755214242441,-4808.2888,0.00025373,2]
[379240013,1755214242451,-1000.0,0.0002538,2]
[379240014,1755214242461,-2500.0,0.0002538,2]
[379240015,1755214242471,-1249.0,0.00025391,7]
[379240016,1755214242481,-150.0,0.00025393,4]
[379240017,1755214242491,-3700.0,0.000254,9]
[379240018,1755214242502,-150.0,0.00025401,4]
[379240019,1755214242514,-3295.24821006,0.00025404,2]
[379240020,1755214242526,-150.0,0.00025432,4]
[379240021,1755214242536,-150.0,0.00025432,4]
[379240022,1755214242547,-600.0,0.00025433,2]
[379240023,1755214242559,-151.0,0.00025433,2]
[379240024,1755214242571,-3295.24821006,0.00025436,2]
[379240025,1755214242582,-15071.33329079,0.00025439,2]
[379240026,1755214242592,-1500.0,0.0002544,2]
[379240027,1755214242602,-15274.0,0.0002544,2]
[379240028,1755214242611,-942.1066676,0.00025448,2]
[379240029,1755214242621,-209.7332062,0.00025453,2]
[379240030,1755214242631,-7740.28647414,0.00025453,2]
[379240031,1755214242642,-1699.8379,0.00025454,2]
[379240032,1755214242652,-3295.24821006,0.00025468,2]
[379240033,1755214242662,-7740.28647405,0.00025478,2]
[379240034,1755214242672,-1074.80287234,0.00025479,10]
[379240036,1755214242683,-500.0,0.00025479,2]
[379240037,1755214242693,-73480.92520239,0.0002548,2]
[379240038,1755214242703,-2599.30259959,0.0002548,2]
[379240039,1755214242712,-326.56612869,0.00025492,2]
[379240040,1755214242722,-150.0,0.00025494,4]
[379240041,1755214242734,-150.0,0.00025494,4]
[379240042,1755214242743,-150.0,0.00025494,4]
[379240043,1755214242753,-150.0,0.000255,2]
[379240044,1755214242764,-500.0,0.000255,9]
[379240045,1755214242778,-150.0,0.000255,9]
[379240046,1755214242789,-150.0,0.000255,9]
[379240047,1755214242799,-4600.0,0.000255,9]
[379240048,1755214242810,-500.0,0.000255,9]
[379240049,1755214242820,-500.0,0.000255,9]
[379240050,1755214242830,-200.0,0.000255,2]
[379240051,1755214242844,-150.0,0.000255,9]
[379240052,1755214242854,-150.0,0.000255,2]
[379240053,1755214242864,-500.0,0.000255,9]
[379240054,1755214242874,-500.0,0.000255,9]
[379240055,1755214242884,-500.0,0.000255,9]
[379240056,1755214242893,-150.0,0.000255,9]
[379240057,1755214242902,-5724.0,0.000255,9]
[379240058,1755214242912,-256.72141881,0.000255,9]
[379240059,1755214242923,-1212.0,0.000255,2]
[379240060,1755214242933,-204.99361125,0.000255,2]
[379240061,1755214242943,-3295.24821006,0.00025501,2]
[379240062,1755214242953,-2178.23,0.00025501,2]
[379240063,1755214242963,-34532.0512,0.00025502,2]
[379240064,1755214242972,-1000.0,0.00025502,2]
[379240065,1755214242983,-7740.28647405,0.00025502,2]
[379240066,1755214242993,-209.7332062,0.00025516,2]
[379240067,1755214243002,-7740.28647405,0.00025527,2]
[379240068,1755214243012,-7000.0,0.0002553,2]
[379240069,1755214243021,-204.99361125,0.0002553,2]
[379240070,1755214243031,-3295.24821006,0.00025533,2]
[379240071,1755214243040,-150.0,0.0002554,4]
[379240072,1755214243049,-15628.7599728,0.00025543,2]
[379240073,1755214243058,-93772.5598365,0.00025544,2]
[379240074,1755214243070,-7740.28647405,0.00025552,2]
[379240075,1755214243079,-1636.36,0.00025553,2]
[379240076,1755214243088,-500.0,0.00025553,2]
[379240077,1755214243097,-657.96,0.00025553,2]
[379240078,1755214243106,-792.19,0.00025553,2]
[379240079,1755214243116,-500.0,0.00025553,2]
[379240080,1755214243125,-3567.07,0.00025553,2]
[379240081,1755214243135,-400.0,0.00025553,2]
[379240082,1755214243144,-400.0,0.00025553,2]
[379240083,1755214243153,-400.0,0.00025553,2]
[379240084,1755214243163,-400.0,0.00025553,2]
[379240085,1755214243172,-166.11470442,0.00025553,2]
[379240086,1755214243181,-400.0,0.00025553,2]
[379240087,1755214243190,-400.0,0.00025553,2]
[379240088,1755214243199,-400.0,0.00025553,2]
[379240089,1755214243209,-400.0,0.00025553,2]
[379240090,1755214243218,-400.0,0.00025553,2]
[379240091,1755214243227,-400.0,0.00025553,2]
[379240092,1755214243237,-400.0,0.00025553,2]
[379240093,1755214243246,-400.0,0.00025553,2]
[379240094,1755214243255,-400.0,0.00025553,2]
[379240095,1755214243264,-400.0,0.00025553,2]
[379240096,1755214243273,-400.0,0.00025553,2]
[379240097,1755214243282,-400.0,0.00025553,2]
[379240098,1755214243292,-400.0,0.00025553,2]
[379240099,1755214243302,-400.0,0.00025553,2]
[379240100,1755214243311,-400.0,0.00025553,2]
[379240101,1755214243321,-400.0,0.00025553,2]
[379240102,1755214243330,-500.0,0.00025553,2]
[379240103,1755214243339,-400.0,0.00025553,2]
[379240104,1755214243349,-500.0,0.00025553,2]
[379240105,1755214243358,-400.0,0.00025553,2]
[379240106,1755214243370,-400.0,0.00025553,2]
[379240107,1755214243379,-400.0,0.00025553,2]
[379240108,1755214243389,-400.0,0.00025553,2]
[379240109,1755214243398,-400.0,0.00025553,2]
[379240112,1755214243407,-400.0,0.00025553,2]
[379240113,1755214243417,-400.0,0.00025553,2]
[379240114,1755214243427,-10656.09,0.00025553,2]
[379240115,1755214243438,-400.0,0.00025553,2]
[379240116,1755214243448,-400.0,0.00025553,2]
[379240117,1755214243459,-400.0,0.00025553,2]
[379240118,1755214243468,-400.0,0.00025553,2]
[379240119,1755214243478,-400.0,0.00025553,2]
[379240120,1755214243487,-4474.77,0.00025553,2]
[379240121,1755214243496,-400.0,0.00025553,2]
[379240122,1755214243505,-2208.72,0.00025553,2]
[379240123,1755214243514,-400.0,0.00025553,2]
[379240124,1755214243523,-803.72,0.00025553,2]
[379240125,1755214243532,-10863.85,0.00025553,2]
[379240126,1755214243542,-400.0,0.00025553,2]
[379240127,1755214243551,-400.0,0.00025553,2]
[379240128,1755214243560,-308.58213457,0.00025553,2]
[379240129,1755214243569,-400.0,0.00025553,2]
[379240130,1755214243578,-400.0,0.00025553,2]
[379240131,1755214243587,-400.0,0.00025553,2]
[379240132,1755214243597,-3796.11,0.00025553,2]
[379240133,1755214243607,-6479.2,0.00025553,2]
[379240134,1755214243616,-400.0,0.00025553,2]
[379240135,1755214243626,-400.0,0.00025553,2]
[379240136,1755214243635,-400.0,0.00025553,2]
[379240137,1755214243644,-4336.12,0.00025553,2]
[379240138,1755214243654,-400.0,0.00025553,2]
[379240139,1755214243663,-400.0,0.00025553,2]
[379240140,1755214243673,-8580.05,0.00025553,2]
[379240141,1755214243685,-5069.4,0.00025553,2]
[379240142,1755214243696,-207.94031362,0.00025553,2]
[379240143,1755214243706,-500.0,0.00025553,2]
[379240144,1755214243715,-400.0,0.00025553,2]
[379240145,1755214243724,-400.0,0.00025553,2]
[379240146,1755214243734,-400.0,0.00025553,2]
[379240147,1755214243742,-400.0,0.00025553,2]
[379240148,1755214243751,-7593.23,0.00025553,2]
[379240149,1755214243761,-14187.77,0.00025553,2]
[379240150,1755214243773,-400.0,0.00025553,2]
[379240151,1755214243783,-400.0,0.00025553,2]
[379240152,1755214243792,-500.0,0.00025553,2]
[379240153,1755214243801,-5383.27,0.00025553,2]
[379240154,1755214243812,-491.67636583,0.00025553,2]
[379240155,1755214243822,-400.0,0.00025553,2]
[379240156,1755214243831,-13441.01,0.00025553,2]
[379240157,1755214243842,-400.0,0.00025553,2]
[379240158,1755214243851,-400.0,0.00025553,2]
[379240159,1755214243860,-1482.29,0.00025553,2]
[379240160,1755214243870,-400.0,0.00025553,2]
[379240161,1755214243879,-152.59608441,0.00025553,2]
[379240162,1755214243889,-2178.23,0.00025553,2]
[379240163,1755214243898,-400.0,0.00025553,2]
[379240164,1755214243908,-3394.2,0.00025553,2]
[379240165,1755214243917,-5569.61,0.00025553,2]
[379240166,1755214243926,-871.53,0.00025553,2]
[379240167,1755214243936,-2964.4,0.00025553,2]
[379240168,1755214243947,-1263.59,0.00025553,2]
[379240169,1755214243956,-1478.16,0.00025553,2]
[379240170,1755214243966,-1130.47,0.00025553,2]
[379240171,1755214243976,-6398.95,0.00025553,2]
[379240172,1755214243985,-717.37,0.00025553,2]
[379240173,1755214243995,-505.97574834,0.00025553,2]
[379240174,1755214244004,-400.0,0.00025553,2]
[379240175,1755214244014,-1638.75,0.00025553,2]
[379240176,1755214244024,-400.0,0.00025553,2]
[379240177,1755214244033,-966.51,0.00025553,2]
[379240178,1755214244043,-4220.73,0.00025553,2]
[379240179,1755214244052,-431.55,0.00025553,2]
[379240180,1755214244061,-500.0,0.00025553,2]
[379240181,1755214244072,-583.43,0.00025553,2]
[379240182,1755214244081,-5541.96,0.00025553,2]
[379240183,1755214244090,-400.0,0.00025553,2]
[379240184,1755214244099,-5153.75,0.00025553,2]
[379240185,1755214244109,-400.0,0.00025553,2]
[379240186,1755214244118,-401.62567285,0.00025553,2]
[379240187,1755214244127,-400.0,0.00025553,2]
[379240188,1755214244137,-685.82,0.00025553,2]
[379240189,1755214244147,-400.0,0.00025553,2]
[379240190,1755214244158,-467.3,0.00025553,2]
[379240191,1755214244167,-400.0,0.00025553,2]
[379240192,1755214244177,-455.53,0.00025553,2]
[379240193,1755214244186,-9716.87,0.00025553,2]
[379240194,1755214244196,-795.44,0.00025553,2]
[379240195,1755214244205,-190310.13,0.00025554,2]
[379240196,1755214244214,-985.35090808,0.00025555,2]
[379240197,1755214244225,-207.47,0.00025557,2]
[379240198,1755214244234,-204.99361125,0.0002556,2]
[379240199,1755214244244,-5000.0,0.00025574,2]
[379240200,1755214244254,-1249.0,0.00025575,2]
[379240201,1755214244263,-150.0,0.00025576,4]
[379240202,1755214244273,-150.0,0.00025576,4]
[379240203,1755214244282,-7740.28647405,0.00025576,2]
[379240204,1755214244292,-209.7332062,0.00025578,2]
[379240205,1755214244302,-150.0,0.00025586,4]
[379240206,1755214244311,-15628.7599728,0.0002559,2]
[379240207,1755214244328,-900.0,0.000256,9]
[379240208,1755214244346,-16448.42326014,0.000256,2]
[379240209,1755214244356,-2376.0,0.000256,2]
[379240210,1755214244366,-7740.28647405,0.00025601,2]
[379240211,1755214244376,-150.0,0.00025614,2]
[379240212,1755214244386,-150.0,0.00025614,2]
[379240213,1755214244402,-7740.28647405,0.00025626,2]
[379240214,1755214244422,-1616.49491495,0.00025627,2]
[379240215,1755214244443,-150.0,0.00025628,4]
[379240216,1755214244455,-632.33067477,0.00025629,4]
[379240217,1755214244465,-209.7332062,0.00025641,2]
[379240218,1755214244476,-15628.7599728,0.00025644,2]
[379240219,1755214244486,-7000.0,0.0002565,2]
[379240220,1755214244498,-109401.319809,0.0002565,2]
[379240221,1755214244510,-19198.9243569,0.0002565,2]
[379240222,1755214244521,-192.53148686,0.0002565,2]
[379240223,1755214244530,-7740.28647405,0.0002565,2]
[379240224,1755214244540,-31257.5199455,0.00025653,2]
[379240225,1755214244550,-7679.56974276,0.00025653,2]
[379240226,1755214244560,-46886.2799183,0.00025653,2]
[379240227,1755214244570,-9599.46217845,0.00025653,2]
[379240228,1755214244579,-31257.5199455,0.00025654,2]
[379240229,1755214244590,-11519.3546141,0.00025654,2]
[379240230,1755214244599,-500.0,0.00025654,2]
[379240231,1755214244609,-500.0,0.00025654,2]
[379240232,1755214244620,-500.0,0.00025654,2]
[379240233,1755214244630,-1052.61,0.00025654,3]
[379240234,1755214244640,-3006.81,0.00025654,2]
[379240235,1755214244651,-1973.73,0.00025654,2]
[379240236,1755214244661,-605.36,0.00025654,2]
[379240237,1755214244670,-500.0,0.00025654,2]
[379240238,1755214244679,-639.95,0.00025654,2]
[379240239,1755214244688,-556.72,0.00025654,2]
[379240240,1755214244698,-1924.11,0.00025654,2]
[379240241,1755214244707,-559.9,0.00025654,2]
[379240242,1755214244716,-795.61,0.00025654,2]
[379240243,1755214244725,-500.0,0.00025654,2]
[379240244,1755214244735,-504.78118852,0.00025654,2]
[379240245,1755214244745,-7496.79,0.00025654,2]
[379240246,1755214244754,-500.0,0.00025654,2]
[379240247,1755214244764,-595.82,0.00025654,2]
[379240248,1755214244775,-1919.89243569,0.00025654,2]
[379240249,1755214244785,-500.0,0.00025656,2]
[379240250,1755214244795,-500.0,0.00025656,2]
[379240251,1755214244806,-500.0,0.00025656,2]
[379240252,1755214244816,-150.0,0.00025656,2]
[379240253,1755214244825,-207.77686672,0.00025656,2]
[379240254,1755214244834,-2178.23,0.00025659,2]
[379240255,1755214244846,-500.0,0.00025659,2]
[379240256,1755214244855,-400.0,0.0002566,2]
[379240257,1755214244865,-1001.89,0.0002566,2]
[379240258,1755214244874,-400.0,0.0002566,2]
[379240259,1755214244885,-400.0,0.0002566,2]
[379240260,1755214244894,-400.0,0.0002566,2]
[379240261,1755214244904,-400.0,0.0002566,2]
[379240262,1755214244919,-400.0,0.0002566,2]
[379240263,1755214244935,-400.0,0.0002566,2]
[379240264,1755214244947,-400.0,0.0002566,2]
[379240265,1755214244956,-400.0,0.0002566,2]
[379240266,1755214244966,-494.73319248,0.0002566,2]
[379240267,1755214244975,-400.0,0.0002566,2]
[379240268,1755214244984,-400.0,0.0002566,2]
[379240269,1755214244994,-400.0,0.0002566,2]
[379240270,1755214245005,-400.0,0.0002566,2]
[379240271,1755214245015,-400.0,0.0002566,2]
[379240272,1755214245025,-400.0,0.0002566,2]
[379240273,1755214245035,-400.0,0.0002566,2]
[379240274,1755214245046,-400.0,0.0002566,2]
[379240275,1755214245055,-400.0,0.0002566,2]
[379240276,1755214245064,-400.0,0.0002566,2]
[379240277,1755214245074,-400.0,0.0002566,2]
[379240278,1755214245083,-400.0,0.0002566,2]
[379240279,1755214245092,-400.0,0.0002566,2]
[379240280,1755214245101,-400.0,0.0002566,2]
[379240281,1755214245111,-400.0,0.0002566,2]
[379240282,1755214245122,-400.0,0.0002566,2]
[379240283,1755214245133,-400.0,0.0002566,2]
[379240284,1755214245143,-400.0,0.0002566,2]
[379240285,1755214245154,-400.0,0.0002566,2]
[379240286,1755214245163,-400.0,0.0002566,2]
[379240287,1755214245172,-400.0,0.0002566,2]
[379240288,1755214245182,-400.0,0.0002566,2]
[379240289,1755214245194,-400.0,0.0002566,2]
[379240290,1755214245204,-400.0,0.0002566,2]
[379240291,1755214245213,-400.0,0.0002566,2]
[379240292,1755214245222,-6216.63,0.0002566,2]
[379240293,1755214245231,-400.0,0.0002566,2]
[379240294,1755214245240,-400.0,0.0002566,2]
[379240295,1755214245250,-400.0,0.0002566,2]
[379240296,1755214245259,-8299.33,0.0002566,2]
[379240297,1755214245268,-5239.43,0.0002566,2]
[379240298,1755214245278,-6953.15,0.0002566,2]
[379240299,1755214245287,-3030.25344,0.0002566,2]
[379240300,1755214245296,-4497.582689,0.0002566,2]
[379240301,1755214245306,-251.21061,0.0002566,2]
[379240302,1755214245315,-10995.15,0.0002566,2]
[379240303,1755214245325,-5165.33,0.0002566,2]
[379240304,1755214245334,-4184.565845,0.0002566,2]
[379240305,1755214245343,-10300.76,0.0002566,2]
[379240306,1755214245353,-25742.44,0.0002566,2]
[379240307,1755214245362,-290.903022,0.0002566,2]
[379240308,1755214245372,-4070.23,0.0002566,2]
[379240309,1755214245382,-1099.19,0.0002566,2]
[379240310,1755214245391,-224.18677,0.0002566,2]
[379240311,1755214245400,-5630.98,0.0002566,2]
[379240312,1755214245410,-6609.96,0.0002566,2]
[379240313,1755214245419,-8783.85,0.0002566,2]
[379240314,1755214245429,-3795.73,0.0002566,2]
[379240315,1755214245438,-5409.75,0.0002566,2]
[379240316,1755214245448,-5728.61,0.0002566,2]
[379240317,1755214245458,-4678.64,0.0002566,2]
[379240318,1755214245467,-5271.78,0.0002566,2]
[379240319,1755214245477,-400.0,0.0002566,2]
[379240320,1755214245486,-9073.28,0.0002566,2]
[379240321,1755214245495,-5383.27,0.0002566,2]
[379240322,1755214245505,-10365.14,0.0002566,2]
[379240323,1755214245515,-17304.06,0.0002566,2]
[379240324,1755214245524,-10811.25,0.0002566,2]
[379240325,1755214245533,-595.34,0.0002566,2]
[379240326,1755214245542,-2250.75,0.0002566,2]
[379240327,1755214245551,-7884.69,0.0002566,2]
[379240328,1755214245560,-2178.23,0.00025662,2]
[379240329,1755214245569,-500.0,0.00025662,2]
[379240330,1755214245578,-9599.46217845,0.00025663,2]
[379240331,1755214245587,-4353.62,0.00025663,2]
[379240332,1755214245596,-400.0,0.00025663,2]
[379240333,1755214245605,-400.0,0.00025663,2]
[379240334,1755214245615,-4765.34,0.00025663,2]
[379240335,1755214245624,-400.0,0.00025663,2]
[379240336,1755214245633,-400.0,0.00025663,2]
[379240337,1755214245642,-627.09,0.00025663,2]
[379240338,1755214245651,-400.0,0.00025663,2]
[379240339,1755214245662,-400.0,0.00025663,2]
[379240340,1755214245672,-1683.38,0.00025663,2]
[379240341,1755214245681,-400.0,0.00025663,2]
[379240342,1755214245690,-400.0,0.00025663,2]
[379240343,1755214245700,-2115.12,0.00025663,2]
[379240344,1755214245710,-400.0,0.00025663,2]
[379240345,1755214245719,-400.0,0.00025663,2]
[379240346,1755214245728,-2894.92,0.00025663,2]
[379240347,1755214245738,-400.0,0.00025663,2]
[379240348,1755214245747,-228.45769924,0.00025663,2]
[379240349,1755214245756,-400.0,0.00025663,2]
[379240350,1755214245767,-400.0,0.00025663,2]
[379240351,1755214245776,-5466.17,0.00025663,2]
[379240352,1755214245785,-400.0,0.00025663,2]
[379240353,1755214245794,-400.0,0.00025663,2]
[379240354,1755214245803,-400.0,0.00025663,2]
[379240355,1755214245814,-3217.15,0.00025663,2]
[379240356,1755214245825,-400.0,0.00025663,2]
[379240357,1755214245834,-2767.65,0.00025663,2]
[379240358,1755214245846,-400.0,0.00025663,2]
[379240359,1755214245855,-400.0,0.00025663,2]
[379240360,1755214245864,-400.0,0.00025663,2]
[379240361,1755214245874,-400.0,0.00025663,2]
[379240362,1755214245883,-400.0,0.00025663,2]
[379240363,1755214245893,-4403.57,0.00025663,2]
[379240364,1755214245902,-400.0,0.00025663,2]
[379240365,1755214245913,-2945.94,0.00025663,2]
[379240366,1755214245923,-4139.11,0.00025663,2]
[379240367,1755214245932,-727.53,0.00025663,2]
[379240368,1755214245943,-1842.66,0.00025663,2]
[379240369,1755214245952,-647.55,0.00025663,2]